[Event "December 19 Late 2023"]
[Site "https://www.chess.com"]
[Date "2023.12.19"]
[Round "6"]
[White "Chaika, Vitalii"]
[Black "Mizzi, Jack"]
[Result "1/2-1/2"]
[Board "90"]
[TimeControl "180+1"]
[WhiteFideId "14111802"]
[BlackFideId "5602521"]
[WhiteElo "2010"]
[BlackElo "2127"]
[WhiteTeam "UKR"]
[BlackTeam "MLT"]
[WhiteClock "0:00:31"]
[BlackClock "0:01:24"]

1. d4 {[%clk 0:02:58]}  Nf6 {[%clk 0:02:59]} 2. Bf4 {[%clk 0:02:58]}  e6 {[%clk 0:02:58]} 3. e3 {[%clk 0:02:58]}  d5 {[%clk 0:02:59]} 4. Nd2 {[%clk 0:02:56]}  Bd6 {[%clk 0:02:59]} 5. Bg3 {[%clk 0:02:56]}  O-O {[%clk 0:02:58]} 6. Bd3 {[%clk 0:02:53]}  c5 {[%clk 0:02:58]} 7. c3 {[%clk 0:02:53]}  Nc6 {[%clk 0:02:57]} 8. Ngf3 {[%clk 0:02:52]}  Re8 {[%clk 0:02:56]} 9. Ne5 {[%clk 0:02:52]}  Qc7 {[%clk 0:02:52]} 10. f4 {[%clk 0:02:50]}  a6 {[%clk 0:02:51]} 11. O-O {[%clk 0:02:47]}  b5 {[%clk 0:02:50]} 12. a3 {[%clk 0:02:46]}  Bb7 {[%clk 0:02:48]} 13. Bh4 {[%clk 0:02:35]}  Be7 {[%clk 0:02:32]} 14. Bxf6 {[%clk 0:02:22]}  Bxf6 {[%clk 0:02:30]} 15. Rf3 {[%clk 0:02:22]}  b4 {[%clk 0:02:12]} 16. Rh3 {[%clk 0:02:05]}  h6 {[%clk 0:01:56]} 17. Qg4 {[%clk 0:01:57]}  bxc3 {[%clk 0:01:44]} 18. bxc3 {[%clk 0:01:53]}  Qa5 {[%clk 0:01:44]} 19. Rxh6 {[%clk 0:01:28]}  Qxc3 {[%clk 0:01:30]} 20. Rh8+ {[%clk 0:01:18]}  Kxh8 {[%clk 0:01:24]} 21. Qh5+ {[%clk 0:01:18]}  Kg8 {[%clk 0:01:25]} 22. Qxf7+ {[%clk 0:01:18]}  Kh8 {[%clk 0:01:25]} 23. Ng6+ {[%clk 0:01:17]}  Kh7 {[%clk 0:01:25]} 24. Nf8+ {[%clk 0:01:14]}  Kh8 {[%clk 0:01:24]} 25. Ng6+ {[%clk 0:01:02]}  Kh7 {[%clk 0:01:24]} 26. Nf8+ {[%clk 0:00:47]}  Kh8 {[%clk 0:01:24]} 27. Ng6+ {[%clk 0:00:31]} 1/2-1/2

[Event "December 19 Late 2023"]
[Site "https://www.chess.com"]
[Date "2023.12.19"]
[Round "6"]
[White "Ibadov, Dashgyn"]
[Black "ajian"]
[Result "1/2-1/2"]
[Board "91"]
[TimeControl "180+1"]
[WhiteFideId "24107514"]
[WhiteElo "2183"]
[BlackElo "2398"]
[WhiteTeam "FID"]
[WhiteClock "0:00:01"]
[BlackClock "0:00:07"]

1. e4 {[%clk 0:03:00]}  c5 {[%clk 0:02:59]} 2. Nf3 {[%clk 0:03:01]}  Nc6 {[%clk 0:02:59]} 3. Bb5 {[%clk 0:03:00]}  e6 {[%clk 0:02:59]} 4. O-O {[%clk 0:02:58]}  Nge7 {[%clk 0:02:58]} 5. d4 {[%clk 0:02:59]}  cxd4 {[%clk 0:02:55]} 6. Nxd4 {[%clk 0:03:00]}  a6 {[%clk 0:02:50]} 7. Be2 {[%clk 0:02:59]}  Nxd4 {[%clk 0:02:49]} 8. Qxd4 {[%clk 0:02:59]}  Nc6 {[%clk 0:02:50]} 9. Qc3 {[%clk 0:02:59]}  Qf6 {[%clk 0:02:41]} 10. Qxf6 {[%clk 0:02:57]}  gxf6 {[%clk 0:02:41]} 11. c3 {[%clk 0:02:52]}  Bc5 {[%clk 0:02:25]} 12. Nd2 {[%clk 0:02:51]}  Ke7 {[%clk 0:02:22]} 13. Nc4 {[%clk 0:02:37]}  b5 {[%clk 0:02:19]} 14. Be3 {[%clk 0:02:37]}  d6 {[%clk 0:02:01]} 15. Bxc5 {[%clk 0:02:28]}  dxc5 {[%clk 0:02:01]} 16. Nb6 {[%clk 0:02:28]}  Rb8 {[%clk 0:02:02]} 17. Nxc8+ {[%clk 0:02:28]}  Rhxc8 {[%clk 0:02:01]} 18. f4 {[%clk 0:02:21]}  a5 {[%clk 0:01:56]} 19. Rf3 {[%clk 0:02:13]}  b4 {[%clk 0:01:50]} 20. Rh3 {[%clk 0:02:12]}  bxc3 {[%clk 0:01:47]} 21. bxc3 {[%clk 0:02:13]}  Rb2 {[%clk 0:01:46]} 22. Bf3 {[%clk 0:02:08]}  Rc2 {[%clk 0:01:29]} 23. Rxh7 {[%clk 0:02:04]}  Rxc3 {[%clk 0:01:29]} 24. Rb1 {[%clk 0:01:56]}  Rc7 {[%clk 0:01:20]} 25. h4 {[%clk 0:01:50]}  Nd4 {[%clk 0:01:17]} 26. Bh5 {[%clk 0:01:40]}  Kd6 {[%clk 0:00:55]} 27. Kh2 {[%clk 0:01:24]}  Re3 {[%clk 0:00:34]} 28. Rb6+ {[%clk 0:01:18]}  Rc6 {[%clk 0:00:32]} 29. Rxc6+ {[%clk 0:01:10]}  Kxc6 {[%clk 0:00:28]} 30. Rxf7 {[%clk 0:00:57]}  c4 {[%clk 0:00:27]} 31. Rf8 {[%clk 0:00:56]}  Kd7 {[%clk 0:00:21]} 32. Bd1 {[%clk 0:00:34]}  c3 {[%clk 0:00:19]} 33. h5 {[%clk 0:00:34]}  Rxe4 {[%clk 0:00:15]} 34. h6 {[%clk 0:00:18]}  Rxf4 {[%clk 0:00:14]} 35. Kg3 {[%clk 0:00:19]}  Rf1 {[%clk 0:00:14]} 36. h7 {[%clk 0:00:19]}  Rh1 {[%clk 0:00:10]} 37. h8=Q {[%clk 0:00:17]}  Rxh8 {[%clk 0:00:10]} 38. Rxh8 {[%clk 0:00:18]}  c2 {[%clk 0:00:10]} 39. Bxc2 {[%clk 0:00:18]}  Nxc2 {[%clk 0:00:11]} 40. Kf4 {[%clk 0:00:17]}  Nb4 {[%clk 0:00:09]} 41. a4 {[%clk 0:00:15]}  Nd3+ {[%clk 0:00:09]} 42. Ke3 {[%clk 0:00:15]}  Nc5 {[%clk 0:00:09]} 43. Kd4 {[%clk 0:00:13]}  Nxa4 {[%clk 0:00:09]} 44. Ra8 {[%clk 0:00:14]}  Nb6 {[%clk 0:00:07]} 45. Rxa5 {[%clk 0:00:13]}  Nd5 {[%clk 0:00:06]} 46. Ra7+ {[%clk 0:00:12]}  Kd6 {[%clk 0:00:06]} 47. Ra6+ {[%clk 0:00:12]}  Kd7 {[%clk 0:00:06]} 48. g3 {[%clk 0:00:11]}  Ke7 {[%clk 0:00:06]} 49. Kc5 {[%clk 0:00:10]}  f5 {[%clk 0:00:05]} 50. Ra7+ {[%clk 0:00:06]}  Kf6 {[%clk 0:00:05]} 51. Kd6 {[%clk 0:00:06]}  Ne3 {[%clk 0:00:04]} 52. Ra8 {[%clk 0:00:06]}  Nc4+ {[%clk 0:00:04]} 53. Kc5 {[%clk 0:00:06]}  Ne5 {[%clk 0:00:04]} 54. Kd4 {[%clk 0:00:05]}  Nf7 {[%clk 0:00:03]} 55. Ke3 {[%clk 0:00:05]}  Ne5 {[%clk 0:00:04]} 56. Rf8+ {[%clk 0:00:04]}  Ke7 {[%clk 0:00:04]} 57. Rh8 {[%clk 0:00:04]}  Ng6 {[%clk 0:00:04]} 58. Rh7+ {[%clk 0:00:04]}  Kf6 {[%clk 0:00:04]} 59. Ra7 {[%clk 0:00:05]}  Ne5 {[%clk 0:00:04]} 60. Kf4 {[%clk 0:00:05]}  Ng6+ {[%clk 0:00:04]} 61. Kf3 {[%clk 0:00:05]}  Ne5+ {[%clk 0:00:05]} 62. Ke3 {[%clk 0:00:05]}  Ng6 {[%clk 0:00:06]} 63. Ra6 {[%clk 0:00:04]}  Ne5 {[%clk 0:00:06]} 64. Kd4 {[%clk 0:00:03]}  Nf3+ {[%clk 0:00:05]} 65. Kc5 {[%clk 0:00:03]}  Ne5 {[%clk 0:00:06]} 66. Kd6 {[%clk 0:00:04]}  Nf7+ {[%clk 0:00:06]} 67. Kd7 {[%clk 0:00:04]}  Ne5+ {[%clk 0:00:06]} 68. Ke8 {[%clk 0:00:04]}  Ng6 {[%clk 0:00:05]} 69. Rb6 {[%clk 0:00:03]}  Ne5 {[%clk 0:00:04]} 70. Kf8 {[%clk 0:00:03]}  Ng6+ {[%clk 0:00:05]} 71. Kg8 {[%clk 0:00:03]}  Ne5 {[%clk 0:00:05]} 72. Kh7 {[%clk 0:00:03]}  Nc4 {[%clk 0:00:05]} 73. Ra6 {[%clk 0:00:03]}  Ne5 {[%clk 0:00:05]} 74. Kh6 {[%clk 0:00:03]}  Ng4+ {[%clk 0:00:06]} 75. Kh5 {[%clk 0:00:03]}  Ne5 {[%clk 0:00:06]} 76. Ra8 {[%clk 0:00:03]}  Ng4 {[%clk 0:00:06]} 77. Rf8+ {[%clk 0:00:03]}  Ke7 {[%clk 0:00:06]} 78. Rh8 {[%clk 0:00:03]}  Kf6 {[%clk 0:00:06]} 79. Rg8 {[%clk 0:00:04]}  Ne5 {[%clk 0:00:06]} 80. Rg5 {[%clk 0:00:02]}  Ng4 {[%clk 0:00:05]} 81. Rg6+ {[%clk 0:00:02]}  Ke5 {[%clk 0:00:05]} 82. Kg5 {[%clk 0:00:02]}  Kd5 {[%clk 0:00:05]} 83. Rg8 {[%clk 0:00:02]}  Ke5 {[%clk 0:00:05]} 84. Rd8 {[%clk 0:00:02]}  Nf2 {[%clk 0:00:05]} 85. Rb8 {[%clk 0:00:01]}  Ne4+ {[%clk 0:00:06]} 86. Kg6 {[%clk 0:00:01]}  Kd5 {[%clk 0:00:06]} 87. Rb5+ {[%clk 0:00:01]}  Kd6 {[%clk 0:00:06]} 88. Ra5 {[%clk 0:00:02]}  Ke7 {[%clk 0:00:06]} 89. Ra7+ {[%clk 0:00:01]}  Kd6 {[%clk 0:00:07]} 90. Ra6+ {[%clk 0:00:01]}  Ke7 {[%clk 0:00:07]} 91. Ra7+ {[%clk 0:00:01]}  Kd6 {[%clk 0:00:07]} 92. Ra6+ {[%clk 0:00:01]}  Ke7 {[%clk 0:00:07]} 93. Ra7+ {[%clk 0:00:01]} 1/2-1/2

[Event "December 19 Late 2023"]
[Site "https://www.chess.com"]
[Date "2023.12.19"]
[Round "6"]
[White "Li, Tedric"]
[Black "Estrada Nieto, Julian"]
[Result "0-1"]
[Board "93"]
[TimeControl "180+1"]
[WhiteFideId "3242897"]
[BlackFideId "5101018"]
[WhiteElo "1833"]
[BlackElo "2161"]
[WhiteTeam "AUS"]
[BlackTeam "ESP"]
[WhiteClock "0:00:48"]
[BlackClock "0:01:46"]

1. e4 {[%clk 0:03:00]}  e5 {[%clk 0:02:59]} 2. Nf3 {[%clk 0:03:00]}  Nc6 {[%clk 0:02:58]} 3. d3 {[%clk 0:03:01]}  Nf6 {[%clk 0:02:58]} 4. g3 {[%clk 0:03:01]}  d5 {[%clk 0:02:58]} 5. exd5 {[%clk 0:03:01]}  Qxd5 {[%clk 0:02:58]} 6. Bg2 {[%clk 0:03:02]}  Bg4 {[%clk 0:02:56]} 7. O-O {[%clk 0:02:58]}  O-O-O {[%clk 0:02:51]} 8. h3 {[%clk 0:02:57]}  Bh5 {[%clk 0:02:51]} 9. Nc3 {[%clk 0:02:48]}  Qd7 {[%clk 0:02:50]} 10. g4 {[%clk 0:02:44]}  Bg6 {[%clk 0:02:50]} 11. Qe2 {[%clk 0:02:38]}  Nd4 {[%clk 0:02:31]} 12. Nxd4 {[%clk 0:02:38]}  exd4 {[%clk 0:02:32]} 13. Ne4 {[%clk 0:02:34]}  Nxe4 {[%clk 0:02:31]} 14. Bxe4 {[%clk 0:02:34]}  Bxe4 {[%clk 0:02:31]} 15. Qxe4 {[%clk 0:02:33]}  h5 {[%clk 0:02:31]} 16. Bf4 {[%clk 0:02:28]}  hxg4 {[%clk 0:02:29]} 17. hxg4 {[%clk 0:02:26]}  Qxg4+ {[%clk 0:02:28]} 18. Bg3 {[%clk 0:02:27]}  Qxe4 {[%clk 0:02:18]} 19. dxe4 {[%clk 0:02:28]}  Bd6 {[%clk 0:02:19]} 20. Rad1 {[%clk 0:02:15]}  Bxg3 {[%clk 0:02:17]} 21. fxg3 {[%clk 0:02:15]}  f6 {[%clk 0:02:18]} 22. Kg2 {[%clk 0:02:11]}  Rhe8 {[%clk 0:02:16]} 23. Kf3 {[%clk 0:02:11]}  Re5 {[%clk 0:02:16]} 24. Rh1 {[%clk 0:02:10]}  c5 {[%clk 0:02:12]} 25. Rh7 {[%clk 0:02:09]}  Rd7 {[%clk 0:02:12]} 26. a4 {[%clk 0:01:40]}  Kc7 {[%clk 0:02:10]} 27. c3 {[%clk 0:01:36]}  d3 {[%clk 0:01:53]} 28. b3 {[%clk 0:01:34]}  a6 {[%clk 0:01:48]} 29. g4 {[%clk 0:01:31]}  b5 {[%clk 0:01:48]} 30. Ke3 {[%clk 0:01:25]}  c4 {[%clk 0:01:47]} 31. bxc4 {[%clk 0:01:24]}  bxc4 {[%clk 0:01:47]} 32. Rb1 {[%clk 0:00:48]}  Rde7 {[%clk 0:01:46]} 0-1

[Event "December 19 Late 2023"]
[Site "https://www.chess.com"]
[Date "2023.12.19"]
[Round "6"]
[White "Smith, Garrett L"]
[Black "Keleberda, Tymur"]
[Result "0-1"]
[Board "94"]
[TimeControl "180+1"]
[WhiteFideId "2024829"]
[BlackFideId "14174294"]
[WhiteElo "2372"]
[BlackElo "2198"]
[WhiteTeam "USA"]
[BlackTeam "CAN"]
[WhiteClock "0:00:02"]
[BlackClock "0:00:26"]

1. e4 {[%clk 0:03:00]}  c5 {[%clk 0:02:44]} 2. Nf3 {[%clk 0:02:47]}  d6 {[%clk 0:02:44]} 3. d4 {[%clk 0:02:48]}  cxd4 {[%clk 0:02:45]} 4. Nxd4 {[%clk 0:02:48]}  Nf6 {[%clk 0:02:46]} 5. Nc3 {[%clk 0:02:49]}  a6 {[%clk 0:02:46]} 6. Be3 {[%clk 0:02:45]}  e5 {[%clk 0:02:47]} 7. Nf3 {[%clk 0:02:45]}  Be7 {[%clk 0:02:44]} 8. h3 {[%clk 0:02:45]}  Be6 {[%clk 0:02:43]} 9. g4 {[%clk 0:02:45]}  h6 {[%clk 0:02:42]} 10. Bg2 {[%clk 0:02:37]}  Nc6 {[%clk 0:02:39]} 11. Qd3 {[%clk 0:02:18]}  d5 {[%clk 0:02:35]} 12. Nxd5 {[%clk 0:02:15]}  Nxd5 {[%clk 0:02:35]} 13. exd5 {[%clk 0:02:15]}  Qxd5 {[%clk 0:02:36]} 14. Qxd5 {[%clk 0:02:12]}  Bxd5 {[%clk 0:02:36]} 15. c3 {[%clk 0:02:08]}  O-O-O {[%clk 0:02:32]} 16. Bb6 {[%clk 0:02:03]}  Rd7 {[%clk 0:02:30]} 17. h4 {[%clk 0:01:54]}  e4 {[%clk 0:02:28]} 18. Nd4 {[%clk 0:01:51]}  e3 {[%clk 0:02:28]} 19. Bxd5 {[%clk 0:01:46]}  exf2+ {[%clk 0:02:28]} 20. Kxf2 {[%clk 0:01:45]}  Rxd5 {[%clk 0:02:28]} 21. Rae1 {[%clk 0:01:42]}  Bf6 {[%clk 0:02:19]} 22. Nxc6 {[%clk 0:01:36]}  bxc6 {[%clk 0:02:20]} 23. Re2 {[%clk 0:01:30]}  c5 {[%clk 0:02:10]} 24. h5 {[%clk 0:01:20]}  Kd7 {[%clk 0:02:08]} 25. c4 {[%clk 0:01:08]}  Rd4 {[%clk 0:02:08]} 26. Bxc5 {[%clk 0:01:06]}  Rxc4 {[%clk 0:02:04]} 27. Rd1+ {[%clk 0:01:03]}  Kc6 {[%clk 0:02:00]} 28. b4 {[%clk 0:01:00]}  Rxg4 {[%clk 0:02:00]} 29. Rd6+ {[%clk 0:00:59]}  Kb5 {[%clk 0:01:55]} 30. Rb6+ {[%clk 0:00:54]}  Kc4 {[%clk 0:01:55]} 31. Rxa6 {[%clk 0:00:54]}  Rd8 {[%clk 0:01:47]} 32. Rd6 {[%clk 0:00:48]}  Rxd6 {[%clk 0:01:34]} 33. Bxd6 {[%clk 0:00:49]}  Bd4+ {[%clk 0:01:35]} 34. Kf3 {[%clk 0:00:49]}  Rg5 {[%clk 0:01:34]} 35. a4 {[%clk 0:00:32]}  Rxh5 {[%clk 0:01:33]} 36. a5 {[%clk 0:00:32]}  Rf5+ {[%clk 0:01:28]} 37. Kg4 {[%clk 0:00:28]}  Rf1 {[%clk 0:01:25]} 38. Ra2 {[%clk 0:00:26]}  Kb3 {[%clk 0:01:02]} 39. Re2 {[%clk 0:00:19]}  f5+ {[%clk 0:01:00]} 40. Kh5 {[%clk 0:00:17]}  f4 {[%clk 0:01:00]} 41. a6 {[%clk 0:00:11]}  f3 {[%clk 0:00:58]} 42. Rd2 {[%clk 0:00:10]}  Kc4 {[%clk 0:00:55]} 43. Bc5 {[%clk 0:00:10]}  Bxc5 {[%clk 0:00:53]} 44. bxc5 {[%clk 0:00:10]}  Ra1 {[%clk 0:00:52]} 45. Rc2+ {[%clk 0:00:10]}  Kd3 {[%clk 0:00:46]} 46. Rf2 {[%clk 0:00:10]}  Ke3 {[%clk 0:00:45]} 47. Rc2 {[%clk 0:00:09]}  Rxa6 {[%clk 0:00:46]} 48. c6 {[%clk 0:00:09]}  Ra8 {[%clk 0:00:26]} 49. c7 {[%clk 0:00:08]}  Rc8 {[%clk 0:00:27]} 50. Kg6 {[%clk 0:00:02]}  f2 {[%clk 0:00:26]} 0-1

[Event "December 19 Late 2023"]
[Site "https://www.chess.com"]
[Date "2023.12.19"]
[Round "6"]
[White "Stojanovski, Sandi"]
[Black "Nielsen, Viktor Haarmark"]
[Result "0-1"]
[Board "98"]
[TimeControl "180+1"]
[WhiteFideId "1403249"]
[BlackFideId "1444492"]
[WhiteElo "2518"]
[BlackElo "2315"]
[WhiteTeam "DEN"]
[BlackTeam "DEN"]
[WhiteClock "0:00:00"]
[BlackClock "0:00:46"]

1. d3 {[%clk 0:03:00]}  e5 {[%clk 0:02:41]} 2. Nf3 {[%clk 0:02:59]}  Nc6 {[%clk 0:02:41]} 3. g3 {[%clk 0:02:59]}  d5 {[%clk 0:02:40]} 4. Bg2 {[%clk 0:02:59]}  Nf6 {[%clk 0:02:41]} 5. O-O {[%clk 0:03:00]}  Be7 {[%clk 0:02:37]} 6. Bg5 {[%clk 0:02:53]}  O-O {[%clk 0:02:35]} 7. Nc3 {[%clk 0:02:53]}  Be6 {[%clk 0:02:34]} 8. e4 {[%clk 0:02:52]}  d4 {[%clk 0:02:34]} 9. Ne2 {[%clk 0:02:50]}  h6 {[%clk 0:02:34]} 10. Bxf6 {[%clk 0:02:46]}  Bxf6 {[%clk 0:02:35]} 11. Nd2 {[%clk 0:02:45]}  Be7 {[%clk 0:02:22]} 12. f4 {[%clk 0:02:44]}  exf4 {[%clk 0:02:23]} 13. Nxf4 {[%clk 0:02:43]}  Ne5 {[%clk 0:02:16]} 14. Nxe6 {[%clk 0:02:31]}  fxe6 {[%clk 0:02:16]} 15. Qh5 {[%clk 0:02:29]}  Qd6 {[%clk 0:02:14]} 16. Bh3 {[%clk 0:02:16]}  Bg5 {[%clk 0:02:12]} 17. Nf3 {[%clk 0:02:09]}  g6 {[%clk 0:02:06]} 18. Bxe6+ {[%clk 0:01:32]}  Qxe6 {[%clk 0:01:50]} 19. Nxg5 {[%clk 0:01:31]}  hxg5 {[%clk 0:01:48]} 20. Qh6 {[%clk 0:01:20]}  g4 {[%clk 0:01:43]} 21. Rf4 {[%clk 0:01:10]}  Nf3+ {[%clk 0:01:06]} 22. Kg2 {[%clk 0:00:59]}  Rxf4 {[%clk 0:01:06]} 23. gxf4 {[%clk 0:00:58]}  Rf8 {[%clk 0:01:06]} 24. Kg3 {[%clk 0:00:36]}  Rf7 {[%clk 0:00:58]} 25. f5 {[%clk 0:00:15]}  Qd6+ {[%clk 0:00:57]} 26. Kg2 {[%clk 0:00:14]}  Rh7 {[%clk 0:00:56]} 27. Qxg6+ {[%clk 0:00:13]}  Qxg6 {[%clk 0:00:56]} 28. fxg6 {[%clk 0:00:14]}  Rxh2+ {[%clk 0:00:50]} 29. Kg3 {[%clk 0:00:14]}  Rxc2 {[%clk 0:00:51]} 30. Kxg4 {[%clk 0:00:14]}  Ne5+ {[%clk 0:00:51]} 31. Kf5 {[%clk 0:00:14]}  Nxd3 {[%clk 0:00:51]} 32. e5 {[%clk 0:00:06]}  Nxb2 {[%clk 0:00:49]} 33. e6 {[%clk 0:00:05]}  Rf2+ {[%clk 0:00:49]} 34. Ke5 {[%clk 0:00:04]}  d3 {[%clk 0:00:48]} 35. e7 {[%clk 0:00:02]}  Re2+ {[%clk 0:00:47]} 36. Kf6 {[%clk 0:00:00]}  d2 {[%clk 0:00:46]} 0-1

[Event "December 19 Late 2023"]
[Site "https://www.chess.com"]
[Date "2023.12.19"]
[Round "6"]
[White "Hoffmann, Asa"]
[Black "Cervantes Landeiro, Thalia"]
[Result "0-1"]
[Board "100"]
[TimeControl "180+1"]
[WhiteFideId "2001470"]
[BlackFideId "3520498"]
[WhiteElo "2117"]
[BlackElo "2189"]
[WhiteTeam "USA"]
[BlackTeam "USA"]
[WhiteClock "0:01:26"]
[BlackClock "0:01:35"]

1. d4 {[%clk 0:02:34]}  Nf6 {[%clk 0:02:58]} 2. Bg5 {[%clk 0:02:28]}  Ne4 {[%clk 0:02:56]} 3. Bf4 {[%clk 0:02:27]}  d5 {[%clk 0:02:54]} 4. f3 {[%clk 0:02:27]}  Nf6 {[%clk 0:02:54]} 5. e4 {[%clk 0:02:27]}  dxe4 {[%clk 0:02:54]} 6. Nc3 {[%clk 0:02:27]}  exf3 {[%clk 0:02:53]} 7. Nxf3 {[%clk 0:02:26]}  Bg4 {[%clk 0:02:49]} 8. h3 {[%clk 0:02:26]}  Bh5 {[%clk 0:02:49]} 9. g4 {[%clk 0:02:26]}  Bg6 {[%clk 0:02:49]} 10. Ne5 {[%clk 0:02:26]}  e6 {[%clk 0:02:45]} 11. Bg2 {[%clk 0:02:25]}  c6 {[%clk 0:02:45]} 12. h4 {[%clk 0:02:25]}  Nd5 {[%clk 0:02:34]} 13. Nxg6 {[%clk 0:02:17]}  hxg6 {[%clk 0:02:33]} 14. Nxd5 {[%clk 0:02:08]}  cxd5 {[%clk 0:02:34]} 15. h5 {[%clk 0:01:57]}  gxh5 {[%clk 0:02:32]} 16. gxh5 {[%clk 0:01:57]}  Bd6 {[%clk 0:02:32]} 17. Qd2 {[%clk 0:01:55]}  Nc6 {[%clk 0:02:20]} 18. O-O-O {[%clk 0:01:53]}  Qc7 {[%clk 0:02:16]} 19. Bxd6 {[%clk 0:01:51]}  Qxd6 {[%clk 0:02:17]} 20. Qg5 {[%clk 0:01:49]}  Qe7 {[%clk 0:01:56]} 21. Qxg7 {[%clk 0:01:45]}  O-O-O {[%clk 0:01:56]} 22. Rdf1 {[%clk 0:01:40]}  Rdg8 {[%clk 0:01:50]} 23. h6 {[%clk 0:01:33]}  Rxg7 {[%clk 0:01:35]} 24. hxg7 {[%clk 0:01:32]}  Qg5+ {[%clk 0:01:36]} 25. Kb1 {[%clk 0:01:32]}  Qxg7 {[%clk 0:01:36]} 26. Rhg1 {[%clk 0:01:26]}  Qxd4 {[%clk 0:01:35]} 0-1

[Event "December 19 Late 2023"]
[Site "https://www.chess.com"]
[Date "2023.12.19"]
[Round "6"]
[White "Biernacki, Mark"]
[Black "Reprintsev, Alexander"]
[Result "0-1"]
[Board "101"]
[TimeControl "180+1"]
[WhiteFideId "2082322"]
[BlackFideId "14100541"]
[WhiteElo "1965"]
[BlackElo "2229"]
[WhiteTeam "USA"]
[BlackTeam "UKR"]
[WhiteClock "0:00:00"]
[BlackClock "0:00:46"]

1. e4 {[%clk 0:02:59]}  d5 {[%clk 0:02:59]} 2. exd5 {[%clk 0:02:59]}  Qxd5 {[%clk 0:02:59]} 3. d4 {[%clk 0:02:58]}  Nc6 {[%clk 0:02:58]} 4. Nf3 {[%clk 0:02:54]}  Bg4 {[%clk 0:02:52]} 5. Be2 {[%clk 0:02:48]}  O-O-O {[%clk 0:02:45]} 6. Nc3 {[%clk 0:02:48]}  Qa5 {[%clk 0:02:41]} 7. Be3 {[%clk 0:02:41]}  e5 {[%clk 0:02:39]} 8. Nxe5 {[%clk 0:02:07]}  Bxe2 {[%clk 0:02:36]} 9. Qxe2 {[%clk 0:02:05]}  Nxe5 {[%clk 0:02:36]} 10. dxe5 {[%clk 0:02:03]}  Qxe5 {[%clk 0:02:26]} 11. O-O {[%clk 0:02:00]}  Nf6 {[%clk 0:02:25]} 12. Qc4 {[%clk 0:01:53]}  Bd6 {[%clk 0:02:22]} 13. g3 {[%clk 0:01:49]}  a6 {[%clk 0:02:16]} 14. Bf4 {[%clk 0:01:32]}  Qc5 {[%clk 0:02:11]} 15. Qxc5 {[%clk 0:01:13]}  Bxc5 {[%clk 0:02:10]} 16. Rad1 {[%clk 0:01:09]}  Bd4 {[%clk 0:02:00]} 17. Rd3 {[%clk 0:01:00]}  Bxc3 {[%clk 0:01:45]} 18. Rxc3 {[%clk 0:00:58]}  Nd5 {[%clk 0:01:43]} 19. Rf3 {[%clk 0:00:50]}  f6 {[%clk 0:01:38]} 20. Bc1 {[%clk 0:00:30]}  Rhe8 {[%clk 0:01:35]} 21. a3 {[%clk 0:00:30]}  Re2 {[%clk 0:01:31]} 22. c3 {[%clk 0:00:29]}  Nb6 {[%clk 0:01:29]} 23. Re3 {[%clk 0:00:26]}  Rxe3 {[%clk 0:01:25]} 24. Bxe3 {[%clk 0:00:17]}  Nc4 {[%clk 0:01:24]} 25. Bc1 {[%clk 0:00:18]}  Rd5 {[%clk 0:01:16]} 26. Re1 {[%clk 0:00:16]}  Kd7 {[%clk 0:01:16]} 27. Kg2 {[%clk 0:00:13]}  Rb5 {[%clk 0:01:15]} 28. b4 {[%clk 0:00:12]}  Rd5 {[%clk 0:01:14]} 29. Re4 {[%clk 0:00:09]}  b5 {[%clk 0:01:13]} 30. Be3 {[%clk 0:00:05]}  Nxa3 {[%clk 0:01:10]} 31. Bc5 {[%clk 0:00:05]}  Re5 {[%clk 0:00:58]} 32. Rd4+ {[%clk 0:00:05]}  Ke8 {[%clk 0:00:55]} 33. Kf3 {[%clk 0:00:06]}  Nc4 {[%clk 0:00:54]} 34. Rd1 {[%clk 0:00:04]}  Re6 {[%clk 0:00:48]} 35. Rc1 {[%clk 0:00:02]}  Nd2+ {[%clk 0:00:47]} 36. Kg2 {[%clk 0:00:02]}  Nb3 {[%clk 0:00:48]} 37. Rd1 {[%clk 0:00:02]}  Nxc5 {[%clk 0:00:47]} 38. bxc5 {[%clk 0:00:02]}  Rc6 {[%clk 0:00:46]} 39. Rd5 {[%clk 0:00:02]}  a5 {[%clk 0:00:46]} 40. Kf3 {[%clk 0:00:02]}  a4 {[%clk 0:00:46]} 41. Ke2 {[%clk 0:00:00]}  a3 {[%clk 0:00:46]} 0-1

[Event "December 19 Late 2023"]
[Site "https://www.chess.com"]
[Date "2023.12.19"]
[Round "6"]
[White "Kepeshchuk, Mykhaylo"]
[Black "Ward, Ieuan C"]
[Result "1-0"]
[Board "105"]
[TimeControl "180+1"]
[WhiteFideId "14113139"]
[BlackFideId "406627"]
[WhiteElo "2279"]
[BlackElo "2326"]
[WhiteTeam "UKR"]
[BlackTeam "ENG"]
[WhiteClock "0:00:24"]
[BlackClock "0:00:15"]

1. d4 {[%clk 0:02:53]}  Nf6 {[%clk 0:02:59]} 2. c4 {[%clk 0:02:52]}  e6 {[%clk 0:02:59]} 3. g3 {[%clk 0:02:49]}  d5 {[%clk 0:02:59]} 4. Bg2 {[%clk 0:02:50]}  Be7 {[%clk 0:02:59]} 5. Nf3 {[%clk 0:02:50]}  O-O {[%clk 0:02:59]} 6. O-O {[%clk 0:02:51]}  dxc4 {[%clk 0:03:00]} 7. Ne5 {[%clk 0:02:52]}  Nc6 {[%clk 0:03:00]} 8. Nxc6 {[%clk 0:02:52]}  bxc6 {[%clk 0:03:01]} 9. Na3 {[%clk 0:02:51]}  Ba6 {[%clk 0:02:56]} 10. Qa4 {[%clk 0:02:48]}  Qc8 {[%clk 0:02:55]} 11. Nxc4 {[%clk 0:02:46]}  Nd5 {[%clk 0:02:42]} 12. Bd2 {[%clk 0:02:30]}  Rb8 {[%clk 0:02:34]} 13. Rab1 {[%clk 0:02:20]}  Rd8 {[%clk 0:02:21]} 14. Rfc1 {[%clk 0:02:17]}  Bb5 {[%clk 0:02:08]} 15. Qd1 {[%clk 0:02:13]}  Nb6 {[%clk 0:01:57]} 16. Na5 {[%clk 0:02:04]}  Rxd4 {[%clk 0:01:30]} 17. Bxc6 {[%clk 0:02:02]}  Ba6 {[%clk 0:01:26]} 18. Qe1 {[%clk 0:01:50]}  Qf8 {[%clk 0:01:11]} 19. Bf3 {[%clk 0:01:44]}  Rd7 {[%clk 0:01:03]} 20. Nc6 {[%clk 0:01:42]}  Re8 {[%clk 0:01:02]} 21. Nxe7+ {[%clk 0:01:29]}  Qxe7 {[%clk 0:00:58]} 22. b3 {[%clk 0:01:26]}  Red8 {[%clk 0:00:54]} 23. Be3 {[%clk 0:01:17]}  e5 {[%clk 0:00:47]} 24. Bc6 {[%clk 0:01:12]}  Rd6 {[%clk 0:00:38]} 25. Bc5 {[%clk 0:01:06]}  Qf6 {[%clk 0:00:36]} 26. Bxd6 {[%clk 0:01:04]}  cxd6 {[%clk 0:00:35]} 27. Bg2 {[%clk 0:01:02]}  d5 {[%clk 0:00:35]} 28. a4 {[%clk 0:00:53]}  d4 {[%clk 0:00:33]} 29. Rc5 {[%clk 0:00:49]}  Nd7 {[%clk 0:00:32]} 30. Rc7 {[%clk 0:00:47]}  Qb6 {[%clk 0:00:26]} 31. Rc6 {[%clk 0:00:41]}  Qb7 {[%clk 0:00:26]} 32. b4 {[%clk 0:00:31]}  d3 {[%clk 0:00:21]} 33. b5 {[%clk 0:00:26]}  d2 {[%clk 0:00:15]} 34. Qxd2 {[%clk 0:00:24]} 1-0